[Event "Kragero Resort Chess A 2019"]
[Site "Kragero"]
[Date "2019.02.21"]
[Round "3.2"]
[White "Castellanos Rodriguez, Renier"]
[Black "Getz, Nicolai"]
[Result "0-1"]
[ECO "E68"]
[WhiteElo "2505"]
[BlackElo "2398"]
[Annotator "ChessBase"]
[PlyCount "106"]
[EventDate "2019.02.20"]
[EventType "swiss"]
[EventCountry "NOR"]
[SourceTitle "playchess.com"]
[Source "ChessBase"]
[SourceQuality "1"]
[TimeControl "5400+30"]

1. Nf3 {[%emt 0:01:02]} Nf6 {[%emt 0:00:00]} 2. c4 {[%emt 0:00:11]} g6 {[%emt 0:00:00]} 3. g3 {[%emt 0:00:40]} Bg7 {[%emt 0:00:00]} 4. Bg2 {[%emt 0:00:03]} O-O {[%emt 0:00:07]} 5. O-O {[%emt 0:00:39]} d6 {[%emt 0:00:17]} 6. d4 {[%emt 0:00:08]} Nbd7 {[%emt 0:00:23]} 7. Nc3 {[%emt 0:00:40]} e5 {[%emt 0:00:16]} 8. e4 {[%emt 0:00:46]} a6 {[%emt 0:02:18]} 9. Re1 {[%emt 0:03:01]} exd4 {[%emt 0:02:53]} 10. Nxd4 {[%emt 0:00:13]} Re8 {[%emt 0:00:58]} 11. h3 {[%emt 0:01:16]} Ne5 {[%emt 0:08:25]} 12. b3 {[%emt 0:03:27]} Bd7 {[%emt 0:01:21]} 13. Bf4 {[%emt 0:16:09]} Qb8 {[%emt 0:14:31]} 14. a4 {[%emt 0:05:47]} Qa7 {[%emt 0:08:54]} 15. Be3 {[%emt 0:03:06]} c5 {[%emt 0:02:36]} 16. Nde2 {[%emt 0:01:54]} Rad8 {[%emt 0:17:20]} 17. Nf4 {[%emt 0:09:13]} Bc6 {[%emt 0:01:14]} 18. Qc2 {[%emt 0:05:09]} b6 {[%emt 0:10:00]} 19. Rad1 {[%emt 0:00:30]} Qb8 {[%emt 0:01:25]} 20. Nd3 {[%emt 0:07:11]} Nxd3 {[%emt 0:01:52]} 21. Qxd3 {[%emt 0:00:36]} Qb7 {[%emt 0:01:33]} 22. Bf4 {[%emt 0:04:01]} h6 {[%emt 0:03:56]} 23. g4 {[%emt 0:06:03]} Re6 {[%emt 0:03:14]} 24. Bg3 {[%emt 0:03:03]} Rde8 {[%emt 0:00:23]} 25. Nd5 {[%emt 0:01:56]} g5 {[%emt 0:03:59]} 26. Nxf6+ {[%emt 0:07:30]} Bxf6 {[%emt 0:00:19]} 27. f3 {[%emt 0:00:50]} Bd4+ {[%emt 0:00:28]} 28. Kh2 {[%emt 0:02:18]} b5 {[%emt 0:02:44]} 29. axb5 {[%emt 0:01:56]} axb5 {[%emt 0:00:04]} 30. Qc2 {[%emt 0:01:11]} bxc4 {[%emt 0:01:04]} 31. bxc4 {[%emt 0:00:08]} Qa6 {[%emt 0:03:57]} 32. Rxd4 {[%emt 0:02:12]} cxd4 {[%emt 0:00:04]} 33. Qd2 {[%emt 0:00:12]} Qxc4 {[%emt 0:00:52]} 34. Rc1 {[%emt 0:00:17]} Qa4 {[%emt 0:00:31]} 35. h4 {[%emt 0:01:51]} d5 {[%emt 0:01:18]} 36. e5 {[%emt 0:00:16]} Rxe5 {[%emt 0:02:14]} 37. Bxe5 {[%emt 0:01:46]} Rxe5 {[%emt 0:00:06]} 38. hxg5 {[%emt 0:04:11]} hxg5 {[%emt 0:00:55]} 39. Rb1 {[%emt 0:04:07]} d3 {[%emt 0:01:32]} 40. Qxd3 {[%emt 0:00:17]} Qf4+ {[%emt 0:00:07]} 41. Kg1 {[%emt 0:00:06]} d4 {[%emt 0:02:53]} 42. Rd1 {[%emt 0:00:45]} Ba4 {[%emt 0:00:44]} 43. Rb1 {[%emt 0:02:20]} Kg7 {[%emt 0:01:19]} 44. Kf2 {[%emt 0:01:21]} Rc5 {[%emt 0:01:15]} 45. Rb2 {[%emt 0:01:22]} Bc2 {[%emt 0:01:10]} 46. Rxc2 {[%emt 0:00:46]} Qe3+ {[%emt 0:00:04]} 47. Qxe3 {[%emt 0:00:33]} dxe3+ {[%emt 0:00:06]} 48. Kxe3 {[%emt 0:00:09]} Rxc2 {[%emt 0:00:03]} 49. Bf1 {[%emt 0:00:03]} Kf6 {[%emt 0:00:49]} 50. Bd3 {[%emt 0:00:31]} Rc3 {[%emt 0:00:25]} 51. Kd4 {[%emt 0:00:48]} Ra3 {[%emt 0:00:06]} 52. Be4 {[%emt 0:00:12]} Ke6 {[%emt 0:00:31]} 53. Bd5+ {[%emt 0:00:08] Ke5+ [%emt 00:01:41]} Kd6 {[%emt 0:00:33]} 0-1

[Event "Kragero Resort Chess A 2019"]
[Site "Kragero"]
[Date "2019.02.21"]
[Round "3.3"]
[White "Kaasen, Tor Fredrik"]
[Black "Notkevich, Benjamin Arvola"]
[Result "1/2-1/2"]
[ECO "A14"]
[WhiteElo "2387"]
[BlackElo "2498"]
[Annotator "ChessBase"]
[PlyCount "152"]
[EventDate "2019.02.20"]
[EventType "swiss"]
[EventCountry "NOR"]
[SourceTitle "playchess.com"]
[Source "ChessBase"]
[SourceQuality "1"]
[TimeControl "5400+30"]

1. c4 {[%emt 0:00:07]} Nf6 {[%emt 0:00:05]} 2. g3 {[%emt 0:01:15]} e6 {[%emt 0:00:27]} 3. Bg2 {[%emt 0:00:33]} d5 {[%emt 0:00:06]} 4. Nf3 {[%emt 0:00:19]} Be7 {[%emt 0:00:29]} 5. O-O {[%emt 0:00:36]} O-O {[%emt 0:00:05]} 6. b3 {[%emt 0:00:06]} c5 {[%emt 0:00:56]} 7. e3 {[%emt 0:01:18]} Nc6 {[%emt 0:00:11]} 8. Bb2 {[%emt 0:00:33]} b6 {[%emt 0:06:15]} 9. Nc3 {[%emt 0:02:46]} Ba6 {[%emt 0:03:42]} 10. d3 {[%emt 0:02:42]} Rc8 {[%emt 0:02:25]} 11. Qd2 {[%emt 0:04:36]} Qc7 {[%emt 0:02:05]} 12. Rad1 {[%emt 0:08:03]} Rfd8 {[%emt 0:00:33]} 13. Qc1 {[%emt 0:01:23]} h6 {[%emt 0:00:34]} 14. Rd2 {[%emt 0:03:16]} Qb8 {[%emt 0:02:49]} 15. Rfd1 {[%emt 0:06:39]} d4 {[%emt 0:02:03]} 16. exd4 {[%emt 0:02:14]} cxd4 {[%emt 0:00:15]} 17. Ne4 {[%emt 0:06:59]} Nxe4 {[%emt 0:02:09]} 18. dxe4 {[%emt 0:00:07]} e5 {[%emt 0:02:56]} 19. Ba3 {[%emt 0:03:51]} Nb4 {[%emt 0:01:34]} 20. Qb2 {[%emt 0:06:04]} b5 {[%emt 0:02:47]} 21. Rb1 {[%emt 0:01:47]} bxc4 {[%emt 0:07:21]} 22. bxc4 {[%emt 0:00:22]} Qc7 {[%emt 0:01:08]} 23. Qc1 {[%emt 0:09:35]} Qa5 {[%emt 0:09:41]} 24. Bf1 {[%emt 0:01:58]} Rb8 {[%emt 0:12:37]} 25. Rb3 {[%emt 0:01:34]} Nxa2 {[%emt 0:14:12]} 26. Qb2 {[%emt 0:02:08]} Nb4 {[%emt 0:01:48]} 27. Nxe5 {[%emt 0:02:11]} Qxe5 {[%emt 0:02:21]} 28. Bxb4 {[%emt 0:00:12]} Bxb4 {[%emt 0:01:05]} 29. Rxb4 {[%emt 0:00:05]} Rxb4 {[%emt 0:00:12]} 30. Qxb4 {[%emt 0:00:05]} Qxe4 {[%emt 0:01:11]} 31. Qa5 {[%emt 0:02:45]} Rd6 {[%emt 0:00:21]} 32. Re2 {[%emt 0:01:29]} Qc6 {[%emt 0:07:23]} 33. Bg2 {[%emt 0:08:21]} Qxc4 {[%emt 0:00:13]} 34. Re8+ {[%emt 0:00:19]} Kh7 {[%emt 0:00:05]} 35. h4 {[%emt 0:09:16]} Bb5 {[%emt 0:06:21]} 36. Re5 {[%emt 0:03:56]} a6 {[%emt 0:02:12]} 37. Qa3 {[%emt 0:02:00]} Re6 {[%emt 0:01:44]} 38. Rf5 {[%emt 0:00:48]} Bc6 {[%emt 0:01:19]} 39. Rc5 {[%emt 0:01:34]} Qa4 {[%emt 0:00:07]} 40. Qd3+ {[%emt 0:00:45]} Kg8 {[%emt 0:02:45]} 41. Rc4 {[%emt 0:02:04]} Qb5 {[%emt 0:01:42]} 42. Bxc6 {[%emt 0:01:22]} Rxc6 {[%emt 0:00:10]} 43. Rxd4 {[%emt 0:00:05]} Rc1+ {[%emt 0:00:48]} 44. Kg2 {[%emt 0:00:17]} Qc6+ {[%emt 0:00:32]} 45. Qe4 {[%emt 0:00:10]} Qxe4+ {[%emt 0:01:15]} 46. Rxe4 {[%emt 0:00:02]} Rc8 {[%emt 0:00:12]} 47. Ra4 {[%emt 0:00:30]} Ra8 {[%emt 0:00:04]} 48. Kf3 {[%emt 0:00:44]} Kf8 {[%emt 0:00:44]} 49. Ke4 {[%emt 0:00:08]} Ke7 {[%emt 0:00:07]} 50. Kd5 {[%emt 0:00:11]} a5 {[%emt 0:01:05]} 51. g4 {[%emt 0:00:58]} Kf6 {[%emt 0:00:46]} 52. Rf4+ {[%emt 0:01:49]} Kg6 {[%emt 0:00:12]} 53. Ra4 {[%emt 0:01:32]} h5 {[%emt 0:00:05]} 54. f3 {[%emt 0:00:28]} f6 {[%emt 0:01:28]} 55. Ke4 {[%emt 0:00:33]} Kf7 {[%emt 0:00:32]} 56. gxh5 {[%emt 0:00:55]} Ke6 {[%emt 0:00:09]} 57. Kf4 {[%emt 0:00:10]} Ra7 {[%emt 0:00:35]} 58. Kg4 {[%emt 0:00:30]} Ke5 {[%emt 0:01:04]} 59. f4+ {[%emt 0:00:52]} Ke6 {[%emt 0:00:12]} 60. h6 {[%emt 0:00:51]} gxh6 {[%emt 0:00:10]} 61. Kh5 {[%emt 0:00:03]} Kf5 {[%emt 0:00:34]} 62. Kxh6 {[%emt 0:00:48]} Kg4 {[%emt 0:00:05]} 63. f5+ {[%emt 0:00:51]} Kxf5 {[%emt 0:00:05]} 64. h5 {[%emt 0:00:03]} Ra8 {[%emt 0:01:32]} 65. Ra1 {[%emt 0:00:32]} a4 {[%emt 0:00:04]} 66. Rf1+ {[%emt 0:00:24]} Ke5 {[%emt 0:00:36]} 67. Kg7 {[%emt 0:00:48]} f5 {[%emt 0:01:36]} 68. h6 {[%emt 0:00:14]} f4 {[%emt 0:00:31]} 69. h7 {[%emt 0:00:10]} Ke4 {[%emt 0:00:04]} 70. h8=Q {[%emt 0:01:13]} Rxh8 {[%emt 0:00:03]} 71. Kxh8 {[%emt 0:00:01]} f3 {[%emt 0:00:08]} 72. Ra1 {[%emt 0:00:05]} f2 {[%emt 0:00:16]} 73. Rxa4+ {[%emt 0:00:03]} Ke3 {[%emt 0:00:05]} 74. Ra1 {[%emt 0:00:04]} Ke2 {[%emt 0:00:03]} 75. Ra2+ {[%emt 0:00:02]} Ke3 {[%emt 0:00:06]} 76. Rxf2 {[%emt 0:00:04]} Kxf2 {[%emt 0:00:03]} 1/2-1/2

[Event "Kragero Resort Chess A 2019"]
[Site "Kragero"]
[Date "2019.02.21"]
[Round "3.4"]
[White "Hasangatin, Ramil"]
[Black "Ragnarsson, Dagur"]
[Result "0-1"]
[ECO "A15"]
[WhiteElo "2485"]
[BlackElo "2361"]
[Annotator "ChessBase"]
[PlyCount "86"]
[EventDate "2019.02.20"]
[EventType "swiss"]
[EventCountry "NOR"]
[SourceTitle "playchess.com"]
[Source "ChessBase"]
[SourceQuality "1"]
[TimeControl "5400+30"]

1. Nf3 {[%emt 0:01:02]} Nf6 {[%emt 0:00:00]} 2. c4 {[%emt 0:00:12]} g6 {[%emt 0:00:00]} 3. b4 {[%emt 0:00:04]} Bg7 {[%emt 0:00:02]} 4. Bb2 {[%emt 0:00:04]} O-O {[%emt 0:00:57]} 5. e3 {[%emt 0:00:06]} b6 {[%emt 0:01:05]} 6. Be2 {[%emt 0:01:18]} c5 {[%emt 0:00:27]} 7. a3 {[%emt 0:01:30]} Nc6 {[%emt 0:02:51]} 8. Qb3 {[%emt 0:04:20]} e6 {[%emt 0:00:33]} 9. d4 {[%emt 0:13:21]} d5 {[%emt 0:01:10]} 10. Nbd2 {[%emt 0:02:51]} Rb8 {[%emt 0:09:27]} 11. O-O {[%emt 0:02:37]} dxc4 {[%emt 0:14:44]} 12. Qxc4 {[%emt 0:04:05]} Nd7 {[%emt 0:00:53]} 13. Qc2 {[%emt 0:06:06]} Qe7 {[%emt 0:08:52]} 14. Rab1 {[%emt 0:03:44]} Nd8 {[%emt 0:05:15]} 15. dxc5 {[%emt 0:08:35]} Bxb2 {[%emt 0:00:05]} 16. Rxb2 {[%emt 0:00:34]} bxc5 {[%emt 0:00:06]} 17. bxc5 {[%emt 0:08:50]} Rxb2 {[%emt 0:10:30]} 18. Qxb2 {[%emt 0:00:29]} Nxc5 {[%emt 0:00:06]} 19. Rc1 {[%emt 0:00:56]} Ndb7 {[%emt 0:00:05]} 20. Ne5 {[%emt 0:02:49]} Qf6 {[%emt 0:08:24]} 21. Ndf3 {[%emt 0:16:37]} Nd7 {[%emt 0:07:06]} 22. Rxc8 {[%emt 0:09:53]} Rxc8 {[%emt 0:00:29]} 23. Qxb7 {[%emt 0:00:05]} Rc1+ {[%emt 0:00:05]} 24. Bf1 {[%emt 0:00:02]} Nxe5 {[%emt 0:01:44]} 25. Qb8+ {[%emt 0:00:08]} Kg7 {[%emt 0:00:02]} 26. Nxe5 {[%emt 0:00:09]} Qf5 {[%emt 0:01:40]} 27. g4 {[%emt 0:06:43]} Qe4 {[%emt 0:03:09]} 28. Qb2 {[%emt 0:00:57]} Rc2 {[%emt 0:00:55]} 29. Qa1 {[%emt 0:01:05]} f6 {[%emt 0:00:05]} 30. Nd3 {[%emt 0:05:01]} Qxg4+ {[%emt 0:00:34]} 31. Kh1 {[%emt 0:00:26]} Rd2 {[%emt 0:01:42]} 32. Qd4 {[%emt 0:00:45]} Qf3+ {[%emt 0:04:57]} 33. Kg1 e5 {[%emt 0:00:07]} 34. Qxa7+ {[%emt 0:00:50]} Kh6 {[%emt 0:00:06]} 35. Qa5 {[%emt 0:00:38]} Qg4+ {[%emt 0:01:24]} 36. Kh1 {[%emt 0:00:05]} Rd1 {[%emt 0:00:36]} 37. Ne1 {[%emt 0:00:09]} Qe4+ {[%emt 0:00:07]} 38. Kg1 {[%emt 0:00:30]} Qb1 {[%emt 0:00:05]} 39. Qa6 {[%emt 0:01:22]} Rxe1 {[%emt 0:00:11]} 40. h3 {[%emt 0:00:31]} Qf5 {[%emt 0:01:13]} 41. Kg2 {[%emt 0:00:24]} Qe4+ {[%emt 0:00:14]} 42. Kg3 {[%emt 0:00:23]} f5 {[%emt 0:02:27]} 43. Kh2 {[%emt 0:00:43]} Qf3 {[%emt 0:00:24]} 0-1

[Event "Kragero Resort Chess A 2019"]
[Site "Kragero"]
[Date "2019.02.21"]
[Round "3.5"]
[White "Vrolijk, Liam"]
[Black "Miedema, David"]
[Result "1-0"]
[ECO "E17"]
[WhiteElo "2470"]
[BlackElo "2356"]
[Annotator "ChessBase"]
[PlyCount "21"]
[EventDate "2019.02.20"]
[EventType "swiss"]
[EventCountry "NOR"]
[SourceTitle "playchess.com"]
[Source "ChessBase"]
[SourceQuality "1"]
[TimeControl "5400+30"]

1. d4 {[%emt 0:00:00]} Nf6 {[%emt 0:00:06]} 2. c4 {[%emt 0:00:00]} e6 {[%emt 0:00:03]} 3. Nf3 {[%emt 0:00:00]} b6 {[%emt 0:00:03]} 4. g3 {[%emt 0:04:32]} Bb7 {[%emt 0:00:26]} 5. Bg2 {[%emt 0:00:56]} Be7 {[%emt 0:00:04]} 6. O-O {[%emt 0:00:06]} O-O {[%emt 0:00:04]} 7. Re1 {[%emt 0:01:11]} c5 {[%emt 0:04:57]} 8. d5 {[%emt 0:03:22]} Ne4 {[%emt 0:01:45]} 9. Nfd2 {[%emt 0:07:23]} Nxd2 {[%emt 0:02:18]} 10. Qxd2 {[%emt 0:01:16]} Qc7 {[%emt 0:03:10]} 11. d6 {[%emt 0:01:38]} 1-0

[Event "Kragero Resort Chess A 2019"]
[Site "Kragero"]
[Date "2019.02.21"]
[Round "3.6"]
[White "Stefansson, Vignir Vatnar"]
[Black "Holm, Kristian Stuvik"]
[Result "1/2-1/2"]
[ECO "A57"]
[WhiteElo "2263"]
[BlackElo "2456"]
[Annotator "ChessBase"]
[PlyCount "93"]
[EventDate "2019.02.20"]
[EventType "swiss"]
[EventCountry "NOR"]
[SourceTitle "playchess.com"]
[Source "ChessBase"]
[SourceQuality "1"]
[TimeControl "5400+30"]

1. d4 {[%emt 0:00:47]} Nf6 {[%emt 0:00:00]} 2. c4 {[%emt 0:00:48]} c5 {[%emt 0:00:19]} 3. d5 {[%emt 0:03:22]} b5 {[%emt 0:00:42]} 4. cxb5 {[%emt 0:00:57]} a6 {[%emt 0:00:04]} 5. Nc3 {[%emt 0:02:41]} axb5 {[%emt 0:02:15]} 6. e4 {[%emt 0:01:03]} b4 {[%emt 0:00:55]} 7. Nb5 {[%emt 0:00:12]} d6 {[%emt 0:00:53]} 8. Bf4 {[%emt 0:00:37]} g5 {[%emt 0:00:18]} 9. Bxg5 {[%emt 0:00:12]} Nxe4 {[%emt 0:00:06]} 10. Bf4 {[%emt 0:01:03]} Nf6 {[%emt 0:00:03]} 11. Bc4 {[%emt 0:02:55]} Bg7 {[%emt 0:00:25]} 12. Ne2 {[%emt 0:03:19]} Nbd7 {[%emt 0:01:38]} 13. b3 {[%emt 0:06:25]} Nb6 {[%emt 0:00:56]} 14. Ng3 {[%emt 0:01:09]} O-O {[%emt 0:02:29]} 15. O-O {[%emt 0:00:45]} Bd7 {[%emt 0:14:31]} 16. a4 {[%emt 0:00:42]} Bxb5 {[%emt 0:11:03]} 17. Bxb5 {[%emt 0:01:56]} Nbxd5 {[%emt 0:00:24]} 18. Bg5 {[%emt 0:01:14]} h6 {[%emt 0:01:31]} 19. Bh4 {[%emt 0:04:13]} Qc8 {[%emt 0:08:23]} 20. Qd3 {[%emt 0:02:00]} Nf4 {[%emt 0:01:26]} 21. Qf3 {[%emt 0:01:00]} Ng6 {[%emt 0:00:48]} 22. Bxf6 {[%emt 0:02:38]} Bxf6 {[%emt 0:00:24]} 23. Rad1 {[%emt 0:00:07]} Ne5 {[%emt 0:08:30]} 24. Qh5 {[%emt 0:01:32]} Qg4 {[%emt 0:00:40]} 25. Qxh6 {[%emt 0:02:18]} Bg7 {[%emt 0:05:34]} 26. Qh5 {[%emt 0:01:56]} Qxh5 {[%emt 0:01:47]} 27. Nxh5 {[%emt 0:00:03]} Bh8 {[%emt 0:01:18]} 28. Ng3 {[%emt 0:04:56]} Ng6 {[%emt 0:00:39]} 29. Nf5 {[%emt 0:00:14]} Bf6 {[%emt 0:02:58]} 30. g3 {[%emt 0:01:14]} d5 {[%emt 0:07:14]} 31. Rxd5 {[%emt 0:05:22]} e6 {[%emt 0:00:28]} 32. Rxc5 {[%emt 0:00:05]} exf5 {[%emt 0:00:18]} 33. Rxf5 {[%emt 0:00:04]} Kg7 {[%emt 0:00:59]} 34. Rd5 {[%emt 0:00:48]} Rfc8 {[%emt 0:07:12]} 35. f4 {[%emt 0:04:43]} Rc2 {[%emt 0:02:46]} 36. Rfd1 {[%emt 0:02:00]} Nf8 {[%emt 0:01:28]} 37. f5 {[%emt 0:06:43]} Ra7 {[%emt 0:01:15]} 38. Bc4 {[%emt 0:00:38]} Ra2 {[%emt 0:00:36]} 39. h4 {[%emt 0:01:15]} Re7 {[%emt 0:00:53]} 40. R5d2 {[%emt 0:06:05]} Rxd2 {[%emt 0:02:34]} 41. Rxd2 {[%emt 0:00:17]} Nd7 {[%emt 0:00:03]} 42. Kg2 {[%emt 0:01:12]} Bc3 {[%emt 0:01:41]} 43. Rd6 {[%emt 0:01:54]} Nf6 {[%emt 0:01:10]} 44. a5 {[%emt 0:00:58]} Ne4 {[%emt 0:02:00]} 45. Rb6 {[%emt 0:00:19]} Nd2 {[%emt 0:01:25]} 46. a6 {[%emt 0:02:04]} Nxc4 {[%emt 0:03:02]} 47. bxc4 {[%emt 0:00:06]} 1/2-1/2

[Event "Kragero Resort Chess A 2019"]
[Site "Kragero"]
[Date "2019.02.21"]
[Round "3.8"]
[White "Wedda, Dries"]
[Black "Lie, Kjetil A."]
[Result "0-1"]
[ECO "B14"]
[WhiteElo "2173"]
[BlackElo "2538"]
[Annotator "ChessBase"]
[PlyCount "114"]
[EventDate "2019.02.20"]
[EventType "swiss"]
[EventCountry "NOR"]
[SourceTitle "playchess.com"]
[Source "ChessBase"]
[SourceQuality "1"]
[TimeControl "5400+30"]

1. Nf3 {[%emt 0:00:00]} c5 {[%emt 0:01:30]} 2. c4 {[%emt 0:00:24]} Nc6 {[%emt 0:04:03]} 3. Nc3 {[%emt 0:00:40]} g6 {[%emt 0:01:11]} 4. e3 {[%emt 0:01:39]} Nf6 {[%emt 0:02:11]} 5. d4 {[%emt 0:00:48]} cxd4 {[%emt 0:01:32]} 6. exd4 {[%emt 0:00:12]} d5 {[%emt 0:00:48]} 7. cxd5 {[%emt 0:03:04]} Nxd5 {[%emt 0:00:33]} 8. Bc4 {[%emt 0:00:25]} Nb6 {[%emt 0:04:41]} 9. Bb3 {[%emt 0:16:31]} Bg7 {[%emt 0:01:54]} 10. Be3 {[%emt 0:02:27]} O-O {[%emt 0:00:43]} 11. h3 {[%emt 0:04:35]} Na5 {[%emt 0:01:16]} 12. Bc2 {[%emt 0:01:22]} Nbc4 {[%emt 0:09:00]} 13. Bc1 {[%emt 0:15:44]} Nc6 {[%emt 0:03:23]} 14. Bb3 {[%emt 0:10:56]} N4a5 {[%emt 0:16:19]} 15. Be3 {[%emt 0:00:49]} Nxb3 {[%emt 0:00:45]} 16. Qxb3 {[%emt 0:05:02]} Na5 {[%emt 0:19:26]} 17. Qd1 {[%emt 0:01:21]} Nc4 {[%emt 0:00:21]} 18. Qe2 {[%emt 0:01:12]} Nxe3 {[%emt 0:02:19]} 19. fxe3 {[%emt 0:00:52]} Be6 {[%emt 0:04:44]} 20. O-O {[%emt 0:03:40]} Rc8 {[%emt 0:00:05]} 21. Rfd1 {[%emt 0:00:11]} Qa5 {[%emt 0:00:40]} 22. Rac1 {[%emt 0:06:45]} Bc4 {[%emt 0:00:49]} 23. Qf2 {[%emt 0:00:08]} b5 {[%emt 0:04:28]} 24. Ne4 {[%emt 0:05:13]} Bd5 {[%emt 0:03:12]} 25. Nc5 {[%emt 0:00:49]} f5 {[%emt 0:12:04]} 26. b3 {[%emt 0:01:32]} Qd8 {[%emt 0:01:41]} 27. h4 {[%emt 0:06:37]} Qd6 {[%emt 0:00:29]} 28. Nd3 {[%emt 0:02:58]} Be4 {[%emt 0:01:52]} 29. Nf4 {[%emt 0:02:06]} Bxf3 {[%emt 0:01:32]} 30. Qxf3 {[%emt 0:00:30]} Bh6 {[%emt 0:00:14]} 31. g3 {[%emt 0:01:40]} Bxf4 {[%emt 0:00:22]} 32. gxf4 {[%emt 0:00:37]} Qe6 {[%emt 0:00:19]} 33. Kf2 {[%emt 0:00:29]} Qa6 {[%emt 0:01:08]} 34. Kg3 {[%emt 0:01:22]} Kg7 {[%emt 0:00:50]} 35. Qd5 {[%emt 0:00:35]} b4 {[%emt 0:00:19]} 36. Qe5+ {[%emt 0:00:29]} Kf7 {[%emt 0:00:28]} 37. h5 {[%emt 0:02:04]} Qe2 {[%emt 0:00:44]} 38. hxg6+ {[%emt 0:00:40]} hxg6 {[%emt 0:00:20]} 39. Qd5+ {[%emt 0:00:44]} e6 {[%emt 0:00:37]} 40. Qf3 {[%emt 0:01:18]} Qxf3+ {[%emt 0:00:25]} 41. Kxf3 {[%emt 0:00:02]} Rh8 {[%emt 0:00:26]} 42. Rxc8 {[%emt 0:01:32]} Rxc8 {[%emt 0:00:04]} 43. d5 {[%emt 0:00:06]} Rc2 {[%emt 0:00:39]} 44. dxe6+ {[%emt 0:00:21]} Kxe6 {[%emt 0:00:05]} 45. a3 {[%emt 0:00:08]} bxa3 {[%emt 0:00:16]} 46. Rd4 {[%emt 0:00:28]} Rb2 {[%emt 0:01:27]} 47. Ra4 {[%emt 0:00:05]} Rxb3 {[%emt 0:00:04]} 48. Rxa7 {[%emt 0:00:04]} Kd5 {[%emt 0:00:33]} 49. Ra6 {[%emt 0:01:14]} Kc4 {[%emt 0:00:33]} 50. Rxg6 {[%emt 0:00:11]} Kc3 {[%emt 0:00:15]} 51. Ra6 {[%emt 0:00:54]} Kb2 {[%emt 0:00:14]} 52. Rh6 {[%emt 0:01:43]} a2 {[%emt 0:00:16]} 53. Rh1 {[%emt 0:00:16]} a1=Q {[%emt 0:00:20]} 54. Rxa1 {[%emt 0:00:03]} Kxa1 {[%emt 0:00:06]} 55. Kg3 {[%emt 0:00:03]} Rxe3+ {[%emt 0:00:13]} 56. Kh4 {[%emt 0:00:05]} Ra3 {[%emt 0:00:15]} 57. Kg5 {[%emt 0:00:03]} Ra5 {[%emt 0:00:05]} 0-1

[Event "Kragero Resort Chess A 2019"]
[Site "Kragero"]
[Date "2019.02.21"]
[Round "3.10"]
[White "Tryggestad, Andreas Garberg"]
[Black "Lund, Gunnar"]
[Result "1/2-1/2"]
[ECO "C41"]
[WhiteElo "2351"]
[BlackElo "2211"]
[Annotator "NA"]
[PlyCount "89"]
[EventDate "2019.02.20"]
[EventType "swiss"]
[EventCountry "NOR"]
[SourceTitle "playchess.com"]
[Source "ChessBase"]
[SourceQuality "1"]
[TimeControl "5400+30"]

1. d4 {[%emt 0:02:15]} d6 {[%emt 0:00:00]} 2. e4 {[%emt 0:00:03]} Nf6 {[%emt 0:00:00]} 3. Nc3 {[%emt 0:00:04]} e5 {[%emt 0:00:00]} 4. Nf3 {[%emt 0:00:03]} Nbd7 {[%emt 0:00:02]} 5. Bc4 {[%emt 0:01:11]} Be7 {[%emt 0:00:08]} 6. O-O {[%emt 0:00:10]} O-O {[%emt 0:00:39]} 7. Re1 {[%emt 0:01:20]} c6 {[%emt 0:00:39]} 8. a4 {[%emt 0:00:09]} a5 {[%emt 0:02:06]} 9. h3 {[%emt 0:00:58]} Qc7 {[%emt 0:09:41]} 10. Qe2 {[%emt 0:02:42]} h6 {[%emt 0:09:08]} 11. Be3 {[%emt 0:03:36]} Re8 {[%emt 0:03:03]} 12. Rad1 {[%emt 0:08:46]} Bf8 {[%emt 0:02:32]} 13. Ba2 {[%emt 0:00:41]} exd4 {[%emt 0:10:53]} 14. Bxd4 {[%emt 0:00:50]} Ne5 {[%emt 0:01:46]} 15. Qe3 {[%emt 0:00:55]} Be6 {[%emt 0:00:58]} 16. Bxe6 {[%emt 0:06:03]} Rxe6 {[%emt 0:01:00]} 17. Nd2 {[%emt 0:01:53]} Ned7 {[%emt 0:04:43]} 18. Qg3 {[%emt 0:13:38]} Rae8 {[%emt 0:05:24]} 19. f4 {[%emt 0:00:37]} Qb8 {[%emt 0:08:28]} 20. Qd3 {[%emt 0:07:23]} d5 {[%emt 0:09:00]} 21. e5 {[%emt 0:00:40]} c5 {[%emt 0:00:47]} 22. Bf2 {[%emt 0:00:18]} d4 {[%emt 0:02:07]} 23. Nb5 {[%emt 0:07:17]} Nd5 {[%emt 0:01:42]} 24. Bg3 {[%emt 0:01:03]} Ne3 {[%emt 0:04:43]} 25. Rxe3 {[%emt 0:00:35]} dxe3 {[%emt 0:00:07]} 26. Qxe3 {[%emt 0:00:07]} Nb6 {[%emt 0:04:21]} 27. b3 {[%emt 0:01:25]} f6 {[%emt 0:02:19]} 28. Nf3 {[%emt 0:05:09]} fxe5 {[%emt 0:01:46]} 29. fxe5 {[%emt 0:00:27]} Rd8 {[%emt 0:02:16]} 30. Re1 {[%emt 0:00:49]} Nd5 {[%emt 0:03:42]} 31. Qe4 {[%emt 0:00:17]} Qc8 {[%emt 0:00:59]} 32. Qc4 {[%emt 0:01:43]} Be7 {[%emt 0:04:10]} 33. Kh2 {[%emt 0:05:41]} Kh8 {[%emt 0:02:04]} 34. Rd1 {[%emt 0:04:58]} Nb6 {[%emt 0:01:37]} 35. Rxd8+ {[%emt 0:00:07]} Bxd8 {[%emt 0:00:05]} 36. Qc3 {[%emt 0:00:11]} Nd5 {[%emt 0:00:08]} 37. Qd2 {[%emt 0:01:13]} Nb4 {[%emt 0:02:31]} 38. Nd6 {[%emt 0:01:11]} Qd7 {[%emt 0:00:01]} 39. Qf4 {[%emt 0:01:56]} Kg8 {[%emt 0:00:30]} 40. Qc4 {[%emt 0:07:28]} b6 {[%emt 0:01:30]} 41. Nd2 {[%emt 0:01:49]} Kh8 {[%emt 0:00:45]} 42. Qf4 {[%emt 0:01:15]} Kg8 {[%emt 0:00:19]} 43. c3 {[%emt 0:00:01]} Nc6 {[%emt 0:00:59]} 44. N2c4 {[%emt 0:00:02]} Bc7 {[%emt 0:00:13]} 45. Qg4 {[%emt 0:07:13]} 1/2-1/2